[Event "Polish University-ch Teams 2024"]
[Site "Lublin"]
[Date "2024.02.24"]
[Round "2.8"]
[White "Demianowicz, Maciej"]
[Black "Koziorowicz, Michal"]
[Result "0-1"]
[ECO "B52"]
[WhiteElo "1972"]
[BlackElo "2324"]
[Annotator "TA"]
[PlyCount "82"]
[EventDate "2024.02.22"]
[EventType "team-tourn"]
[EventCountry "POL"]
[SourceTitle "playchess.com"]
[Source "ChessBase"]
[SourceQuality "1"]
[TimeControl "900+5"]

{[%evp 17,82,39,33,35,88,75,75,70,77,70,72,51,75,85,89,38,34,31,36,38,54,42,18,0,0,-2,0,0,0,0,0,-13,0,-2,-8,-78,-81,-68,-73,-322,-322,-379,-216,-377,-380,-348,-308,-545,-385,-354,-347,-332,-343,-350,-300,-346,-342,-342,-269,-330,-337,-326,-330,-599,-427,-475,-404]} 1. e4 {[%emt 0:00:01]} c5 {[%emt 0:00:01]} 2. Nf3 {[%emt 0:00:01]} d6 {[%emt 0:00:02]} 3. Bb5+ {[%emt 0:00:05]} Bd7 {[%emt 0:00:20]} 4. Bxd7+ {[%emt 0:00:14]} Nxd7 {[%emt 0:00:04]} 5. O-O {[%emt 0:00:01]} Ngf6 {[%emt 0:00:05]} 6. Re1 {[%emt 0:00:02]} g6 {[%emt 0:00:05]} 7. c3 {[%emt 0:00:20]} Bg7 {[%emt 0:01:23]} 8. d4 {[%emt 0:00:15]} cxd4 {[%emt 0:00:05]} 9. cxd4 {[%emt 0:00:01]} O-O {[%emt 0:00:59]} 10. Nc3 {[%emt 0:02:17]} Ne8 {[%emt 0:01:08]} ({Better is} 10... e5 $14) 11. Be3 {[%emt 0:01:07]} Nb6 {[%emt 0:00:23]} 12. b3 {[%emt 0:00:12] White is better.} Nc7 {[%emt 0:00:30]} 13. Rc1 {[%emt 0:00:09]} Rc8 {[%emt 0:01:05]} 14. Qd2 {[%emt 0:01:38]} d5 {[%emt 0:00:29]} 15. e5 {[%emt 0:00:24]} Ne6 {[%emt 0:00:19]} 16. Bh6 {[%emt 0:00:52]} ({White should try} 16. h4 $16) 16... Na8 $14 {[%emt 0:00:52]} 17. Bxg7 {[%emt 0:00:14]} Kxg7 {[%emt 0:00:03]} 18. Ne2 {[%emt 0:00:40]} Qb6 {[%emt 0:00:46]} 19. Rxc8 {[%emt 0:00:02]} Rxc8 {[%emt 0:00:04]} 20. Rc1 {[%emt 0:00:02]} Rxc1+ {[%emt 0:00:40]} 21. Qxc1 {[%emt 0:00:08]} Nac7 {[%emt 0:00:12]} 22. Qd2 {[%emt 0:05:08]} a5 {[%emt 0:01:10]} 23. h4 {[%emt 0:00:14]} h5 {[%emt 0:00:08]} 24. Ng5 {[%emt 0:00:19]} Qb5 {[%emt 0:01:19]} 25. Nxe6+ {[%emt 0:00:32]} Nxe6 {[%emt 0:00:04]} 26. Nf4 {[%emt 0:00:18]} (26. f3 $11 {keeps the balance.}) 26... Nxf4 $17 {[%emt 0:01:29]} 27. Qxf4 {[%emt 0:00:01][%mdl 4096] Endgame. KQ-KQ} Qe2 {[%emt 0:00:01]} 28. Qe3 $2 {[%emt 0:01:10] [#] This move loses the game for White.} (28. Kh2 $17) 28... Qxa2 $19 {[%emt 0:00:12]} 29. e6 {[%emt 0:00:01]} f6 {[%emt 0:00:07] Inhibits Qe5.} (29... Qb1+ $142 30. Kh2 Qe4) 30. Kh2 $2 {[%emt 0:00:06]} (30. Qc3 {is the only way for White.} Qb1+ 31. Kh2) 30... b5 {[%emt 0:00:51]} 31. Qf3 {[%emt 0:00:34]} Qa3 {[%emt 0:00:23]} 32. g3 $2 {[%emt 0:00:12]} (32. Qxd5 $2 Qd6+ 33. Qxd6 exd6 $19) (32. Qc3 Qd6+ 33. Kg1) 32... Qd6 {[%emt 0:00:03]} 33. Qc3 {[%emt 0:00:05]} a4 {[%emt 0:00:37]} 34. bxa4 {[%emt 0:00:07]} bxa4 {[%emt 0:00:01]} (34... Qxe6 35. axb5 Kf8 36. Kg1 $16) 35. Qc8 {[%emt 0:00:22]} a3 {[%emt 0:00:19]} 36. Qa8 {[%emt 0:00:01] [#]} g5 $1 {[%emt 0:00:22]} (36... Qxe6 37. Qxa3 Qe2 38. Kg2 $17) 37. hxg5 {[%emt 0:00:02]} fxg5 {[%emt 0:00:01][%cal Oh5h4] White must now prevent ...h4!} 38. Kg2 {[%emt 0:00:09]} h4 {[%emt 0:00:06]} ({Less strong is} 38... Qxe6 39. Qxa3 Qe4+ 40. Kg1 $17) 39. gxh4 {[%emt 0:00:01]} gxh4 {[%emt 0:00:01]} 40. Qa4 $2 {[%emt 0:00:10]} (40. Kh3 {was the only chance.}) 40... Kf6 {[%emt 0:00:25]} ({Not} 40... Qxe6 41. Qxa3 Qe4+ 42. Kh2 $19) 41. Qe8 {[%emt 0:00:13]} Kxe6 {[%emt 0:01:16] Weighted Error Value: White=0.50/Black=0.17 (very precise) .  Loses game:     	White=1     	---        Mistake:       	White=5     	Black=2      OK:         	White=8     	Black=7      Best:        	White=1     	Black=5      Strong:       	---       	Black=1} 0-1

[Event "Polish University-ch Teams 2024"]
[Site "Lublin"]
[Date "2024.02.24"]
[Round "2.9"]
[White "Karpus, Michal"]
[Black "Rogala, Milosz"]
[Result "1-0"]
[ECO "B17"]
[WhiteElo "2243"]
[BlackElo "1839"]
[Annotator "ChessBase"]
[PlyCount "52"]
[EventDate "2024.02.22"]
[EventType "team-tourn"]
[EventCountry "POL"]
[SourceTitle "playchess.com"]
[Source "ChessBase"]
[SourceQuality "1"]
[TimeControl "900+5"]

1. e4 {[%emt 0:00:03]} c6 {[%emt 0:00:05]} 2. d4 {[%emt 0:00:07]} d5 {[%emt 0:00:02]} 3. Nc3 {[%emt 0:00:03]} dxe4 {[%emt 0:00:06]} 4. Nxe4 {[%emt 0:00:01]} Nd7 {[%emt 0:00:04]} 5. Ng5 {[%emt 0:00:07]} Ngf6 {[%emt 0:00:06]} 6. Bd3 {[%emt 0:00:05]} e6 {[%emt 0:00:07]} 7. Qe2 {[%emt 0:00:14]} Bd6 {[%emt 0:00:05]} 8. N1f3 {[%emt 0:00:12]} h6 {[%emt 0:00:15]} 9. Ne4 {[%emt 0:00:05]} Nxe4 {[%emt 0:00:03]} 10. Qxe4 {[%emt 0:00:02]} Nf6 {[%emt 0:00:02]} 11. Qe2 {[%emt 0:00:02]} b6 {[%emt 0:00:31]} 12. Bd2 {[%emt 0:00:38]} Bb7 {[%emt 0:00:07]} 13. Ne5 {[%emt 0:00:21]} Qc7 {[%emt 0:00:38]} 14. f4 {[%emt 0:00:08]} O-O-O {[%emt 0:04:30]} 15. a4 {[%emt 0:00:09]} c5 {[%emt 0:00:28]} 16. a5 {[%emt 0:00:15]} b5 {[%emt 0:01:06]} 17. a6 {[%emt 0:00:16]} Ba8 {[%emt 0:01:03]} 18. Ba5 {[%emt 0:00:03]} Qe7 {[%emt 0:00:19]} 19. Bxb5 {[%emt 0:00:28]} Bc7 {[%emt 0:00:57]} 20. Bc6 {[%emt 0:00:12]} Bxc6 {[%emt 0:01:21]} 21. Nxc6 {[%emt 0:00:05]} Qd6 {[%emt 0:00:38]} 22. Nxa7+ {[%emt 0:00:25]} Kd7 {[%emt 0:00:09]} 23. Qb5+ {[%emt 0:00:02]} Ke7 {[%emt 0:00:07]} 24. Nc6+ {[%emt 0:00:25]} Kf8 {[%emt 0:00:12]} 25. Bxc7 {[%emt 0:00:04]} Qxc7 {[%emt 0:00:06]} 26. Nxd8 {[%emt 0:00:02]} Ke7 {[%emt 0:00:00]} 1-0

[Event "Polish University-ch Teams 2024"]
[Site "Lublin"]
[Date "2024.02.24"]
[Round "2.10"]
[White "Poplawski, Maciej"]
[Black "Syrkiewicz, Michal"]
[Result "0-1"]
[ECO "D01"]
[WhiteElo "1900"]
[BlackElo "2074"]
[Annotator "NA RC"]
[PlyCount "46"]
[EventDate "2024.02.22"]
[EventType "team-tourn"]
[EventCountry "POL"]
[SourceTitle "playchess.com"]
[Source "ChessBase"]
[SourceQuality "1"]
[TimeControl "900+5"]

1. d4 {[%emt 0:00:02]} d5 {[%emt 0:00:03]} 2. Nc3 {[%emt 0:00:05]} Nf6 {[%emt 0:00:10]} 3. Bg5 {[%emt 0:00:03]} Bf5 {[%emt 0:00:23]} 4. f3 {[%emt 0:00:06]} c5 {[%emt 0:01:25]} 5. e3 {[%emt 0:01:06]} Nc6 {[%emt 0:00:49]} 6. dxc5 {[%emt 0:01:04]} e6 {[%emt 0:01:04]} 7. e4 {[%emt 0:01:43]} dxe4 {[%emt 0:00:36]} 8. Qxd8+ {[%emt 0:00:36]} Rxd8 {[%emt 0:02:43]} 9. Bb5 {[%emt 0:00:55]} Bg6 {[%emt 0:00:25]} 10. Bxf6 {[%emt 0:01:29]} Be7 {[%emt 0:00:12]} 11. Bxc6+ {[%emt 0:00:44]} bxc6 {[%emt 0:01:03]} 12. Rc1 {[%emt 0:08:12]} O-O 13. Rd1 {[%emt 0:00:00]} Rxd1+ {[%emt 0:01:23]} 14. Kxd1 {[%emt 0:00:00]} Rd8+ {[%emt 0:00:01]} 15. Kc1 {[%emt 0:00:00]} Rd2 {[%emt 0:00:33]} 16. b4 {[%emt 0:00:00]} Bxf6 {[%emt 0:03:28]} 17. a4 {[%emt 0:00:11]} Rxg2 {[%emt 0:01:50]} 18. b5 {[%emt 0:00:01]} cxb5 {[%emt 0:00:04]} 19. axb5 {[%emt 0:00:04]} exf3 {[%emt 0:00:07]} 20. b6 {[%emt 0:00:17]} axb6 {[%emt 0:00:02]} 21. cxb6 {[%emt 0:00:01]} f2 {[%emt 0:00:05]} 22. b7 {[%emt 0:00:00]} Be5 {[%emt 0:00:09]} 23. h4 {[%emt 0:00:00]} Bg3 {[%emt 0:00:00]} 0-1

[Event "Polish University-ch Teams 2024"]
[Site "Lublin"]
[Date "2024.02.24"]
[Round "2.11"]
[White "Kaminski, Maciej"]
[Black "Twardowski, Hubert"]
[Result "1-0"]
[ECO "B32"]
[WhiteElo "1869"]
[BlackElo "1848"]
[Annotator "NA RC"]
[PlyCount "129"]
[EventDate "2024.02.22"]
[EventType "team-tourn"]
[EventCountry "POL"]
[SourceTitle "playchess.com"]
[Source "ChessBase"]
[SourceQuality "1"]
[TimeControl "900+5"]

1. e4 {[%emt 0:00:03]} c5 {[%emt 0:00:02]} 2. Nf3 {[%emt 0:00:03]} Nc6 {[%emt 0:00:03]} 3. d4 {[%emt 0:00:04]} cxd4 {[%emt 0:00:02]} 4. Nxd4 {[%emt 0:00:02]} e5 {[%emt 0:00:07]} 5. Nb5 {[%emt 0:00:09]} d6 {[%emt 0:00:01]} 6. N1c3 {[%emt 0:00:17]} a6 {[%emt 0:00:05]} 7. Na3 {[%emt 0:00:02]} b5 {[%emt 0:00:02]} 8. Nd5 {[%emt 0:00:02]} Be7 {[%emt 0:00:01]} 9. c4 {[%emt 0:00:31]} b4 {[%emt 0:00:08]} 10. Nc2 {[%emt 0:00:15]} Rb8 {[%emt 0:00:15]} 11. Be2 {[%emt 0:00:17]} Nf6 {[%emt 0:00:02]} 12. Nxe7 {[%emt 0:00:34]} Nxe7 {[%emt 0:02:30]} 13. Qd3 {[%emt 0:00:28]} Qc7 {[%emt 0:03:09]} 14. Bg5 {[%emt 0:00:36]} Nd7 {[%emt 0:00:51]} 15. Bxe7 {[%emt 0:00:11]} Kxe7 {[%emt 0:00:01]} 16. Ne3 {[%emt 0:00:04]} Nf6 {[%emt 0:01:36]} 17. O-O {[%emt 0:01:25]} Be6 {[%emt 0:00:22]} 18. Nd5+ {[%emt 0:00:13]} Bxd5 {[%emt 0:00:21]} 19. cxd5 {[%emt 0:00:05]} Rhe8 {[%emt 0:01:05]} 20. Rac1 {[%emt 0:00:13]} Qb7 {[%emt 0:00:57]} 21. Rc6 {[%emt 0:01:41]} Rbc8 {[%emt 0:00:23]} 22. Rxa6 {[%emt 0:00:23]} Rc5 {[%emt 0:01:28]} 23. a3 {[%emt 0:00:26]} Rec8 {[%emt 0:00:41]} 24. f4 {[%emt 0:02:24]} exf4 {[%emt 0:01:36]} 25. Rxf4 {[%emt 0:01:13]} Rc1+ {[%emt 0:00:01]} 26. Bf1 {[%emt 0:00:06]} Kf8 {[%emt 0:00:02]} 27. h3 {[%emt 0:00:52]} bxa3 {[%emt 0:00:14]} 28. Qxa3 {[%emt 0:00:08]} Qe7 {[%emt 0:00:39]} 29. Qxd6 {[%emt 0:00:39]} Qxd6 {[%emt 0:00:01]} 30. Rxd6 {[%emt 0:00:02]} Ke7 {[%emt 0:00:02]} 31. Ra6 {[%emt 0:00:27]} R8c4 {[%emt 0:00:05]} 32. Kh2 {[%emt 0:01:01]} Nxd5 {[%emt 0:00:06]} 33. Bxc4 {[%emt 0:01:59]} Nxf4 {[%emt 0:00:04]} 34. Ra7+ {[%emt 0:00:02]} Kd6 {[%emt 0:00:21]} 35. Rxf7 {[%emt 0:00:35]} Ke5 {[%emt 0:00:04]} 36. Bd5 {[%emt 0:00:27]} g6 {[%emt 0:00:18]} 37. Re7+ {[%emt 0:00:04]} Kd4 {[%emt 0:00:02]} 38. Kg3 {[%emt 0:00:05]} Ke3 {[%emt 0:00:19]} 39. Ra7 {[%emt 0:00:01]} Ne2+ {[%emt 0:00:08]} 40. Kh2 {[%emt 0:00:01]} Rc2 {[%emt 0:00:04]} 41. Ra3+ {[%emt 0:00:02]} Kf4 {[%emt 0:00:12]} 42. Rf3+ {[%emt 0:00:04]} Ke5 {[%emt 0:00:00]} 43. Rf2 {[%emt 0:00:08]} h5 {[%emt 0:00:04]} 44. b3 {[%emt 0:00:08]} h4 {[%emt 0:00:02]} 45. Bc4 {[%emt 0:00:05]} Nd4 {[%emt 0:00:04]} 46. Rxc2 {[%emt 0:00:08]} Nxc2 {[%emt 0:00:01]} 47. Bd5 {[%emt 0:00:02]} Kf4 {[%emt 0:00:19]} 48. Bf7 {[%emt 0:00:08]} Nd4 {[%emt 0:00:00]} 49. b4 {[%emt 0:00:04]} Kxe4 {[%emt 0:00:00]} 50. Bxg6+ {[%emt 0:00:02]} Kd5 {[%emt 0:00:03]} 51. Bd3 {[%emt 0:00:01]} Nc6 {[%emt 0:00:04]} 52. b5 {[%emt 0:00:04]} Ne5 {[%emt 0:00:02]} 53. Be2 {[%emt 0:00:02]} Nd7 {[%emt 0:00:05]} 54. g3 {[%emt 0:00:02]} hxg3+ {[%emt 0:00:03]} 55. Kxg3 {[%emt 0:00:01]} Ke5 {[%emt 0:00:01]} 56. h4 {[%emt 0:00:04]} Kf6 {[%emt 0:00:27]} 57. Kf4 {[%emt 0:00:14]} Nb6 {[%emt 0:00:00]} 58. Ke4 {[%emt 0:00:07]} Ke6 {[%emt 0:00:00]} 59. Kd4 {[%emt 0:00:04]} Kd6 {[%emt 0:00:00]} 60. Bc4 {[%emt 0:00:14]} Nd7 {[%emt 0:00:00]} 61. h5 {[%emt 0:00:04]} Nf6 {[%emt 0:00:17]} 62. h6 {[%emt 0:00:02]} Kc7 {[%emt 0:00:07]} 63. Ke5 {[%emt 0:00:08]} Ng4+ {[%emt 0:00:01]} 64. Kf5 {[%emt 0:00:09]} Nxh6+ {[%emt 0:00:02]} 65. Ke4 {[%emt 0:00:13]} 1-0

[Event "Polish University-ch Teams 2024"]
[Site "Lublin"]
[Date "2024.02.24"]
[Round "2.12"]
[White "Lascar, Radoslawa"]
[Black "Harazinska, Magdalena"]
[Result "0-1"]
[ECO "B84"]
[WhiteElo "1804"]
[BlackElo "1950"]
[Annotator "NA RC"]
[PlyCount "76"]
[EventDate "2024.02.22"]
[EventType "team-tourn"]
[EventCountry "POL"]
[SourceTitle "playchess.com"]
[Source "ChessBase"]
[SourceQuality "1"]
[TimeControl "900+5"]

1. e4 {[%emt 0:00:02]} c5 {[%emt 0:00:00]} 2. Nf3 {[%emt 0:00:02]} a6 {[%emt 0:00:01]} 3. d4 {[%emt 0:00:03]} cxd4 {[%emt 0:00:02]} 4. Nxd4 {[%emt 0:00:01]} Nf6 {[%emt 0:00:01]} 5. Nc3 {[%emt 0:00:36]} d6 {[%emt 0:00:01]} 6. a4 {[%emt 0:01:45]} Qc7 {[%emt 0:00:15]} 7. Be3 {[%emt 0:01:17]} e6 {[%emt 0:00:08]} 8. Be2 {[%emt 0:00:37]} Be7 {[%emt 0:00:11]} 9. O-O {[%emt 0:00:07]} O-O {[%emt 0:00:08]} 10. Kh1 {[%emt 0:00:27]} b6 {[%emt 0:00:13]} 11. f4 {[%emt 0:00:33]} Bb7 {[%emt 0:00:01]} 12. Bf3 {[%emt 0:00:49]} Nbd7 {[%emt 0:00:01]} 13. Qe1 {[%emt 0:01:06]} Nc5 {[%emt 0:00:42]} 14. Bd2 {[%emt 0:00:53]} Rfd8 {[%emt 0:00:23]} 15. b4 {[%emt 0:01:32]} Ncd7 {[%emt 0:00:02]} 16. Rb1 {[%emt 0:02:03]} Qc4 {[%emt 0:00:55]} 17. Qf2 {[%emt 0:00:04]} Rac8 {[%emt 0:01:13]} 18. Be2 {[%emt 0:00:22]} Qc7 {[%emt 0:00:02]} 19. Bd3 {[%emt 0:00:01]} e5 {[%emt 0:00:51]} 20. Nf5 {[%emt 0:00:34]} Bf8 {[%emt 0:00:01]} 21. Qh4 {[%emt 0:00:56]} exf4 {[%emt 0:01:07]} 22. Qg5 {[%emt 0:01:19]} Ne5 {[%emt 0:01:41]} 23. Nd5 {[%emt 0:00:25]} Nxd5 {[%emt 0:00:58]} 24. exd5 {[%emt 0:00:01]} f6 {[%emt 0:01:07]} 25. Qxf4 {[%emt 0:00:40]} Nxd3 {[%emt 0:00:19]} 26. cxd3 {[%emt 0:00:01]} Bxd5 {[%emt 0:00:01]} 27. Ne3 {[%emt 0:00:49]} Bf7 {[%emt 0:00:14]} 28. Ng4 {[%emt 0:00:01]} d5 {[%emt 0:00:19]} 29. Qf3 {[%emt 0:00:06]} d4 {[%emt 0:00:14]} 30. Bf4 {[%emt 0:00:10]} Bd6 {[%emt 0:00:31]} 31. Qg3 {[%emt 0:00:11]} Bxf4 {[%emt 0:00:02]} 32. Qxf4 {[%emt 0:00:05]} Qxf4 {[%emt 0:00:15]} 33. Rxf4 {[%emt 0:00:01]} Rc3 {[%emt 0:00:07]} 34. Nf2 {[%emt 0:00:07]} Ba2 {[%emt 0:00:07]} 35. Ra1 {[%emt 0:00:05]} Bb3 {[%emt 0:00:15]} 36. b5 {[%emt 0:00:07]} a5 {[%emt 0:00:01]} 37. Re4 {[%emt 0:00:05]} Kf7 {[%emt 0:00:27]} 38. g3 {[%emt 0:00:01]} Bd5 {[%emt 0:00:02]} 0-1

[Event "Polish University-ch Teams 2024"]
[Site "Lublin"]
[Date "2024.02.24"]
[Round "2.13"]
[White "Zerebiec, Maurycy"]
[Black "Kosakowski, Jakub"]
[Result "0-1"]
[ECO "A36"]
[WhiteElo "1996"]
[BlackElo "2482"]
[Annotator "ChessBase"]
[PlyCount "62"]
[EventDate "2024.02.22"]
[EventType "team-tourn"]
[EventCountry "POL"]
[SourceTitle "playchess.com"]
[Source "ChessBase"]
[SourceQuality "1"]
[TimeControl "900+5"]

1. c4 {[%emt 0:00:03]} e6 {[%emt 0:00:08]} 2. e4 {[%emt 0:00:30]} c5 {[%emt 0:00:06]} 3. Nc3 {[%emt 0:00:02]} Nc6 {[%emt 0:00:05]} 4. g3 {[%emt 0:00:02]} g6 {[%emt 0:00:37]} 5. Bg2 {[%emt 0:00:02]} Bg7 {[%emt 0:00:03]} 6. Nge2 {[%emt 0:00:03]} Nge7 {[%emt 0:00:02]} 7. a3 {[%emt 0:00:03]} O-O {[%emt 0:00:08]} 8. Rb1 {[%emt 0:00:02]} d5 {[%emt 0:01:49]} 9. exd5 {[%emt 0:00:06]} exd5 {[%emt 0:00:02]} 10. cxd5 {[%emt 0:00:36]} Ne5 {[%emt 0:00:27]} 11. d4 {[%emt 0:02:26]} cxd4 {[%emt 0:00:51]} 12. Nxd4 {[%emt 0:00:03]} Bg4 {[%emt 0:01:18]} 13. f3 {[%emt 0:00:23]} Bc8 {[%emt 0:00:39]} 14. O-O {[%emt 0:00:49]} Nxd5 {[%emt 0:00:20]} 15. Nxd5 {[%emt 0:02:25]} Qxd5 {[%emt 0:00:03]} 16. f4 {[%emt 0:00:05]} Qxd4+ {[%emt 0:00:06]} 17. Qxd4 {[%emt 0:00:02]} Nf3+ {[%emt 0:00:02]} 18. Rxf3 {[%emt 0:00:01]} Bxd4+ {[%emt 0:00:02]} 19. Be3 {[%emt 0:00:02]} Bf5 {[%emt 0:00:02]} 20. Re1 {[%emt 0:03:47]} Rfe8 {[%emt 0:00:37]} 21. Kf2 {[%emt 0:01:56]} Bxb2 {[%emt 0:00:28]} 22. Bc5 {[%emt 0:00:08]} Rec8 {[%emt 0:00:26]} 23. Rb3 {[%emt 0:00:28]} Rxc5 {[%emt 0:01:05]} 24. Rxb2 {[%emt 0:00:03]} Rd8 {[%emt 0:00:32]} 25. Bxb7 {[%emt 0:00:43]} Rc3 {[%emt 0:00:28]} 26. Ra1 {[%emt 0:01:31]} Rb8 {[%emt 0:00:23]} 27. Rb4 {[%emt 0:00:47]} a5 {[%emt 0:00:07]} 28. Rb5 {[%emt 0:00:07]} Bd3 {[%emt 0:00:12]} 29. Rb6 {[%emt 0:00:09]} Be4 {[%emt 0:00:03]} 30. Re1 {[%emt 0:00:04]} Rxb7 {[%emt 0:00:03]} 31. Ra6 {[%emt 0:00:04]} Rb2+ {[%emt 0:00:03]} 0-1

[Event "Polish University-ch Teams 2024"]
[Site "Lublin"]
[Date "2024.02.24"]
[Round "2.14"]
[White "Niedbala, Bartlomiej"]
[Black "Jankowiak, Tomasz"]
[Result "1-0"]
[ECO "B12"]
[WhiteElo "2382"]
[BlackElo "2158"]
[Annotator "TA"]
[PlyCount "53"]
[EventDate "2024.02.22"]
[EventType "team-tourn"]
[EventCountry "POL"]
[SourceTitle "playchess.com"]
[Source "ChessBase"]
[SourceQuality "1"]
[TimeControl "900+5"]

{[%evp 13,53,37,52,54,93,22,150,100,288,289,282,274,509,508,490,310,292,246,550,522,1059,900,927,969,1027,1028,1647,1576,2147,2146,2154,1425,1435,1421,1983,1973,3340,3099,29988,3652,29990,29991]} 1. e4 {[%emt 0:00:01]} c6 {[%emt 0:00:01]} 2. d4 {[%emt 0:00:02]} d5 {[%emt 0:00:01]} 3. e5 {[%emt 0:00:01]} Bf5 {[%emt 0:00:03]} 4. Nf3 {[%emt 0:00:02]} e6 {[%emt 0:00:05]} 5. Be2 {[%emt 0:00:03]} c5 {[%emt 0:00:02]} 6. Be3 {[%emt 0:00:02]} Qb6 {[%emt 0:00:23]} 7. Nc3 {[%emt 0:00:02]} Nc6 {[%emt 0:01:15]} 8. O-O {[%emt 0:00:02] dxc5 would now be deadly.} Qxb2 {[%emt 0:01:35]} 9. Qe1 {[%emt 0:03:52]} (9. Nb5 $16 {Threatens to win with Nc7+.} c4 10. Nc7+ Kd7 11. Nxa8 Bxc2 12. Qd2) 9... Bxc2 {[%emt 0:01:55]} (9... cxd4 $1 $11 10. Bxd4 Qb4 (10... Qxc2 $2 11. Rc1 $18) (10... Bxc2 $2 11. Nb5 $18)) 10. Qd2 {[%emt 0:01:36]} (10. Nb5 c4 11. Nc7+ Kd7 12. Nxa8 Bb4 $17) (10. dxc5 $142 {Strongly threatening Qd2.} Bg6 11. a3 (11. Nb5 Rc8 $14)) 10... c4 $2 {[%emt 0:07:06] [#] This costs Black the game.} (10... cxd4 $16 11. Bxd4 Nxd4 12. Nxd4 Bb4) 11. Rab1 $1 $18 {[%emt 0:01:16][%mdl 512]} Qa3 {[%emt 0:00:48]} 12. Qxc2 {[%emt 0:00:52]} Bb4 $2 {[%emt 0:00:03]} (12... Nb4 13. Qb2 Qxb2 14. Rxb2 b6) 13. Nb5 {[%emt 0:00:45]} Qa5 {[%emt 0:00:01]} 14. Nd6+ {[%emt 0:00:18]} Bxd6 {[%emt 0:00:09]} 15. exd6 {[%emt 0:00:01][%cal Be5d6,Bd6d7][%mdl 32]} b5 {[%emt 0:00:12]} (15... Nf6 {is tougher.} 16. Rxb7 O-O) 16. Ne5 {[%emt 0:00:13]} Qb6 {[%emt 0:00:24]} 17. d7+ {[%emt 0:02:02]} Kf8 {[%emt 0:00:02][%cal Be8f8,Bf8e7,Be7f6,Bf6e5][%mdl 32] [#]} 18. Bxc4 $1 {[%emt 0:00:26][%mdl 512]} dxc4 {[%emt 0:01:01] [#]} (18... Nxe5 19. dxe5) 19. d5 $1 {[%emt 0:00:05][%mdl 512]} Qc7 {[%emt 0:01:20]} (19... Nxe5 20. Bxb6) 20. dxc6 {[%emt 0:01:50]} Qxe5 {[%emt 0:00:05]} 21. Qd2 {[%emt 0:00:01]} Ke7 {[%emt 0:00:07]} 22. Qb4+ {[%emt 0:00:22]} Kf6 {[%emt 0:00:09]} 23. Rfd1 {[%emt 0:00:13]} Ne7 {[%emt 0:00:02]} 24. Bd4 {[%emt 0:00:19]} Nd5 {[%emt 0:00:09]} 25. Bxe5+ {[%emt 0:00:10]} Kxe5 {[%emt 0:00:02]} 26. Qxb5 {[%emt 0:00:04]} (26. Rxd5+ $142 Kf6 27. Qd6 (27. Rxb5 h6 $18) (27. c7 Kg6 $18) 27... h6 28. c7 (28. Rbxb5 Rad8 $18) (28. Rdxb5 c3 $18) 28... Rac8 29. Rbxb5 (29. d8=B+ Kg6 $18) 29... Kg6 30. Rb8 (30. d8=N Kh7 $18) 30... Rxb8 31. cxb8=R (31. cxb8=Q Rxb8 32. Qxb8 c3 33. d8=Q c2)) 26... Rab8 {[%emt 0:00:07]} 27. Qxb8+ {[%emt 0:00:04] Weighted Error Value: White=0.44/Black=1.99.  Loses game:     	---       	Black=1      Mistake:       	White=2     	Black=3      Inaccurate:     	White=1     	Black=2      OK:         	White=3     	Black=3      Best:        	White=1     	Black=1} 1-0

[Event "Polish University-ch Teams 2024"]
[Site "Lublin"]
[Date "2024.02.24"]
[Round "2.15"]
[White "Turek, Michal"]
[Black "Hasterok, Mateusz"]
[Result "0-1"]
[ECO "B48"]
[WhiteElo "1750"]
[BlackElo "2150"]
[Annotator "ChessBase"]
[PlyCount "74"]
[EventDate "2024.02.22"]
[EventType "team-tourn"]
[EventCountry "POL"]
[SourceTitle "playchess.com"]
[Source "ChessBase"]
[SourceQuality "1"]
[TimeControl "900+5"]

1. e4 {[%emt 0:00:03]} c5 {[%emt 0:00:01]} 2. Nf3 {[%emt 0:00:03]} e6 {[%emt 0:00:01]} 3. d4 {[%emt 0:00:05]} cxd4 {[%emt 0:00:02]} 4. Nxd4 {[%emt 0:00:02]} Nc6 {[%emt 0:00:01]} 5. Nc3 {[%emt 0:00:02]} a6 {[%emt 0:00:02]} 6. f4 {[%emt 0:00:13]} Qc7 {[%emt 0:00:34]} 7. Be3 {[%emt 0:00:32]} b5 {[%emt 0:00:13]} 8. Nxc6 {[%emt 0:00:34]} Qxc6 {[%emt 0:00:19]} 9. a3 {[%emt 0:00:32]} b4 {[%emt 0:00:02]} 10. axb4 {[%emt 0:00:31]} Bxb4 {[%emt 0:00:01]} 11. Qd4 {[%emt 0:00:07]} Bxc3+ {[%emt 0:00:06]} 12. bxc3 {[%emt 0:00:08]} Nf6 {[%emt 0:00:04]} 13. e5 {[%emt 0:01:15]} Nd5 {[%emt 0:00:25]} 14. Bd2 {[%emt 0:00:47]} Ne7 {[%emt 0:00:41]} 15. Qc4 {[%emt 0:01:17]} Qxc4 {[%emt 0:02:49]} 16. Bxc4 {[%emt 0:00:02]} Bb7 {[%emt 0:00:01]} 17. Kf2 {[%emt 0:00:16]} O-O {[%emt 0:00:19]} 18. Rhb1 {[%emt 0:00:23]} Rfb8 {[%emt 0:00:49]} 19. Rb6 {[%emt 0:01:05]} Bc8 {[%emt 0:01:42]} 20. Rxb8 {[%emt 0:03:38]} Rxb8 {[%emt 0:00:01]} 21. Ra4 {[%emt 0:00:10]} Ra8 {[%emt 0:00:20]} 22. Be3 {[%emt 0:00:30]} Bb7 {[%emt 0:01:15]} 23. g4 {[%emt 0:01:04]} h6 {[%emt 0:00:13]} 24. Bd3 {[%emt 0:00:32]} f6 {[%emt 0:00:23]} 25. exf6 {[%emt 0:00:38]} gxf6 {[%emt 0:00:02]} 26. f5 {[%emt 0:00:06]} Kg7 {[%emt 0:00:14]} 27. fxe6 {[%emt 0:00:35]} dxe6 {[%emt 0:00:02]} 28. Bc5 {[%emt 0:00:37]} Nd5 {[%emt 0:00:20]} 29. c4 {[%emt 0:00:19]} Nf4 {[%emt 0:00:05]} 30. Ke3 {[%emt 0:00:11]} e5 {[%emt 0:00:56]} 31. Rb4 {[%emt 0:00:29]} Bg2 {[%emt 0:00:02]} 32. Be4 {[%emt 0:00:17]} Bxe4 {[%emt 0:00:05]} 33. Kxe4 {[%emt 0:00:01]} Kg6 {[%emt 0:00:31]} 34. Rb7 {[%emt 0:00:17]} Rc8 {[%emt 0:00:17]} 35. Be3 {[%emt 0:00:18]} Rxc4+ {[%emt 0:00:03]} 36. Kf3 {[%emt 0:00:01]} Nd5 {[%emt 0:00:30]} 37. h4 {[%emt 0:00:13]} Nxe3 {[%emt 0:00:16]} 0-1